fUST/lending_fUST_20250430
["ID","MTS","AMOUNT","RATE_DAILY","PERIOD"]
[359358846,1745950033422,-3000.0,0.00048044,120]
[359358847,1745950033447,-578.02,0.00048069,120]
[359358848,1745950033475,-200.0,0.00048173,120]
[359358849,1745950033503,-578.02,0.00048269,120]
[359358850,1745950033527,-3000.0,0.00048318,120]
[359358851,1745950033552,-578.02,0.00048469,120]
[359358852,1745950033579,-200.0,0.00048539,120]
[359358853,1745950033605,-3000.0,0.00048592,120]
[359358854,1745950033630,-578.02,0.00048669,120]
[359358855,1745950033654,-3000.0,0.00048866,120]
[359358856,1745950033679,-578.02,0.00048869,120]
[359358857,1745950033703,-100000.0,0.00049,120]
[359358858,1745950033726,-189.19751699,0.00049,120]
[359358859,1745950033749,-200.0,0.00049,60]
[359358860,1745950033773,-100000.0,0.00049,120]
[359358861,1745950033798,-578.02,0.00049069,120]
[359358862,1745950033826,-3000.0,0.0004914,120]
[359358863,1745950033851,-200.0,0.00049263,120]
[359358864,1745950033875,-578.02,0.00049269,120]
[359358865,1745950033901,-200.0,0.00049274,120]
[359358866,1745950033925,-500.0,0.00049315,120]
[359358867,1745950033949,-500.0,0.00049315,120]
[359358868,1745950033976,-200.0,0.00049315,120]
[359358869,1745950034000,-948.342589,0.00049315,120]
[359358870,1745950034025,-948.342589,0.00049315,120]
[359358871,1745950034048,-948.342589,0.00049315,120]
[359358872,1745950034072,-948.342589,0.00049315,120]
[359358873,1745950034100,-948.342589,0.00049315,120]
[359358874,1745950034124,-948.342589,0.00049315,120]
[359358875,1745950034148,-948.342589,0.00049315,120]
[359358876,1745950034172,-948.342589,0.00049315,120]
[359358877,1745950034196,-948.342589,0.00049315,120]
[359358878,1745950034219,-948.342589,0.00049315,120]
[359358879,1745950034243,-948.342589,0.00049315,120]
[359358880,1745950034265,-948.342589,0.00049315,120]
[359358881,1745950034289,-948.342589,0.00049315,120]
[359358882,1745950034313,-948.342589,0.00049315,120]
[359358883,1745950034337,-948.342589,0.00049315,120]
[359358884,1745950034359,-948.342589,0.00049315,120]
[359358885,1745950034383,-948.342589,0.00049315,120]
[359358886,1745950034409,-948.342589,0.00049315,120]
[359358887,1745950034434,-948.342589,0.00049315,120]
[359358888,1745950034462,-948.3425798,0.00049315,120]
[359358889,1745950034486,-3000.0,0.00049414,120]
[359358890,1745950034512,-578.02,0.00049469,120]
[359358891,1745950034540,-200.0,0.00049633,120]
[359358892,1745950034566,-200.0,0.00049664,120]
[359358893,1745950034592,-578.02,0.00049669,120]
[359358894,1745950034617,-501.12232366,0.0004968,120]
[359358895,1745950034641,-3000.0,0.00049688,120]
[359358896,1745950034668,-200.0,0.00049737,120]
[359358897,1745950034692,-84863.97274815,0.0004981,90]
[359358898,1745950034716,-578.02,0.00049869,120]
[359358899,1745950034739,-750.0,0.000499,120]
[359358900,1745950034762,-3000.0,0.00049962,120]
[359358901,1745950034786,-1000.0,0.00049999,120]
[359358902,1745950034811,-160.0,0.0005,91]
[359358903,1745950034836,-638.86,0.0005,120]
[359358904,1745950034860,-861.89036526,0.0005,120]
[359358905,1745950034884,-539.38782085,0.0005,120]
[359358906,1745950034909,-252.52038536,0.0005,120]
[359358907,1745950034933,-200.0,0.0005,60]
[359358908,1745950034958,-3006.37467434,0.0005,120]
[359358909,1745950034983,-300.0,0.0005,120]
[359358910,1745950035006,-2000.0,0.0005,120]
[359358911,1745950035030,-2614.0,0.0005,120]
[359358912,1745950035054,-201.0,0.0005,120]
[359358913,1745950035078,-2498.22665028,0.0005,120]
[359358914,1745950035102,-578.02,0.00050069,120]
[359358915,1745950035125,-236.08998669,0.000501,120]
[359358916,1745950035149,-3000.0,0.00050236,120]
[359358917,1745950035172,-578.02,0.00050269,120]
[359358918,1745950035195,-578.02,0.00050469,120]
[359358919,1745950035353,-200.0,0.00050501,120]
[359358920,1745950035378,-3000.0,0.0005051,120]
[359358921,1745950035404,-578.02,0.00050669,120]
[359358922,1745950035432,-578.02,0.00050869,120]
[359358923,1745950035456,-200.0,0.00050982,120]
[359358924,1745950035482,-160.0,0.00051,93]
[359358925,1745950035507,-5026.85,0.00051,120]
[359358926,1745950035530,-271.11,0.00051,60]
[359358927,1745950035553,-200.0,0.00051,120]
[359358928,1745950035579,-3000.0,0.00051,85]
[359358929,1745950035603,-3000.0,0.0005101,85]
[359358930,1745950035627,-3000.0,0.0005102,85]
[359358931,1745950035652,-3000.0,0.0005103,85]
[359358932,1745950035676,-3000.0,0.0005104,85]
[359358933,1745950035700,-3000.0,0.0005105,85]
[359358934,1745950035724,-3000.0,0.00051058,120]
[359358935,1745950035748,-3000.0,0.0005106,85]
[359358936,1745950035771,-578.02,0.00051069,120]
[359358937,1745950035795,-4436.69521,0.0005107,85]
[359358938,1745950035819,-1711.89803449,0.00051111,120]
[359358939,1745950035844,-578.02,0.00051269,120]
[359358940,1745950035869,-200.0,0.00051357,120]
[359358941,1745950035893,-578.02,0.00051469,120]
[359358942,1745950035918,-1111.39296014,0.00051498,70]
[359358943,1745950035942,-3000.0,0.000515,120]
[359358944,1745950035966,-3000.0,0.00051606,120]
[359358945,1745950035991,-578.02,0.00051669,120]
[359358946,1745950036015,-578.02,0.00051869,120]
[359358947,1745950036039,-160.0,0.00052,96]
[359358948,1745950036064,-2310.15,0.00052,120]
[359358949,1745950036089,-300.0,0.00052,120]
[359358950,1745950036114,-3394.31368607,0.00052,120]
[359358951,1745950036139,-1000.0,0.00052,60]
[359358952,1745950036163,-201.0,0.00052,120]
[359358953,1745950036191,-999.0,0.00052054,120]
[359358954,1745950036216,-578.02,0.00052069,120]
[359358955,1745950036240,-3000.0,0.00052154,120]
[359358956,1745950036264,-578.02,0.00052269,120]
[359358957,1745950036290,-200.0,0.00052336,120]
[359358958,1745950036315,-578.02,0.00052469,120]
[359358959,1745950036340,-3000.0,0.000525,120]
[359358960,1745950036364,-578.02,0.00052669,120]
[359358961,1745950036387,-3000.0,0.00052702,120]
[359358962,1745950036417,-578.02,0.00052869,120]
[359358963,1745950036441,-160.0,0.00053,99]
[359358964,1745950036467,-578.02,0.00053069,120]
[359358965,1745950036492,-200.0,0.00053185,120]
[359358966,1745950036517,-3000.0,0.0005325,120]
[359358967,1745950036549,-578.02,0.00053269,120]
[359358968,1745950036577,-578.02,0.00053469,120]
[359358969,1745950036604,-3000.0,0.000535,120]
[359358970,1745950036629,-578.02,0.00053669,120]
[359358971,1745950036659,-3000.0,0.00053798,120]
[359358972,1745950036684,-578.02,0.00053869,120]
[359358973,1745950036709,-160.0,0.00054,102]
[359358974,1745950036733,-1117.55328101,0.00054,120]
[359358975,1745950036757,-680.04462781,0.00054,120]
[359358976,1745950036782,-368.97489485,0.00054,120]
[359358977,1745950036806,-795.20645512,0.00054,120]
[359358978,1745950036833,-300.0,0.00054,120]
[359358979,1745950036858,-578.02,0.00054069,120]
[359358980,1745950036883,-200.0,0.0005408,120]
[359358981,1745950036908,-578.02,0.00054269,120]
[359358982,1745950036933,-200.0,0.00054278,120]
[359358983,1745950036958,-3000.0,0.00054346,120]
[359358984,1745950036982,-578.02,0.00054469,120]
[359358985,1745950037007,-151.0,0.00054495,120]
[359358986,1745950037031,-151.0,0.00054495,120]
[359358987,1745950037055,-151.0,0.00054495,120]
[359358988,1745950037079,-278.7185563,0.00054495,120]
[359358989,1745950037104,-500.0,0.00054495,120]
[359358990,1745950037127,-500.0,0.00054495,120]
[359358991,1745950037151,-500.0,0.00054495,120]
[359358992,1745950037175,-500.0,0.00054495,120]
[359358993,1745950037199,-500.0,0.00054495,120]
[359358994,1745950037223,-159.69683285,0.00054495,120]
[359358995,1745950037247,-3000.0,0.000545,120]
[359358996,1745950037271,-578.02,0.00054669,120]
[359358997,1745950037296,-1000.0,0.00054739,90]
[359358998,1745950037320,-1000.0,0.00054739,90]
[359358999,1745950037344,-1000.0,0.00054739,90]
[359359000,1745950037367,-1000.0,0.00054739,90]
[359359001,1745950037391,-1000.0,0.00054739,90]
[359359002,1745950037417,-1000.0,0.00054739,90]
[359359003,1745950037440,-1000.0,0.00054739,90]
[359359004,1745950037465,-1000.0,0.00054739,90]
[359359005,1745950037495,-1000.0,0.00054739,90]
[359359006,1745950037520,-1000.0,0.00054739,90]
[359359007,1745950037543,-1000.0,0.00054739,90]
[359359008,1745950037568,-1000.0,0.00054739,90]
[359359009,1745950037594,-1000.0,0.00054739,90]
[359359010,1745950037617,-1000.0,0.00054739,90]
[359359011,1745950037641,-389.55058838,0.00054739,90]
[359359012,1745950037667,-511100.88093919,0.00054785,56]
[359359013,1745950037691,-154.16579131,0.00054794,120]
[359359014,1745950037857,-151.0,0.00054794,59]
[359359015,1745950037882,-151.0,0.00054794,59]
[359359016,1745950037912,-200.0,0.00054794,59]
[359359017,1745950037937,-505420.25338038,0.00054795,59]
[359359018,1745950052794,-294.48,0.0004108,120]
[359359019,1745950052820,-150.5,0.0004109,120]
[359359020,1745950052855,-1000000.0,0.00054785,56]
[359359021,1745950052880,-999555.02,0.00054785,56]
[359359022,1745950057036,-519760.9876152,0.00054785,56]
[359359023,1745950057062,-14579.74661962,0.00054795,59]
[359359024,1745950057087,-1465659.26576518,0.00054795,59]
[359359025,1745950060547,-455918.73423482,0.00054795,59]
[359359026,1745950061575,1544081.26576518,0.00054785,56]
[359359027,1745950068907,-455918.73423482,0.00054785,56]
[359359091,1745950232471,-428.0601985,0.00027097,2]
[359359163,1745950238207,-2186.12716392,0.00027097,2]
[359359165,1745950238217,-321.46751557,0.00027197,2]
[359359167,1745950238226,-682.07036641,0.00027297,2]
[359359171,1745950238263,-317.92963359,0.00027297,2]
[359359173,1745950238273,-163.048207,0.00027397,2]
[359359175,1745950238283,-300.0,0.00028669,2]
[359359177,1745950238292,-117.79116956,0.00028669,2]
[359359180,1745950238305,-182.20883044,0.00028669,2]
[359359182,1745950238314,-300.0,0.0002867,2]
[359359184,1745950238323,-12963.356242,0.00028671,2]
[359359186,1745950238332,-152.0,0.00029369,2]
[359359188,1745950238342,-276.1264042,0.00029527,2]
[359359190,1745950238351,-4062.27425632,0.00029532,2]
[359359193,1745950238371,-11767.47324944,0.00029532,2]
[359359195,1745950238383,-814.33509922,0.00029532,2]
[359359197,1745950238395,-653.96976556,0.00029532,2]
[359359432,1745950240778,-1230.57985752,0.00029532,2]
[359359434,1745950240787,-276.12640421,0.00029748,2]
[359359436,1745950240798,-1011.8086005,0.00029762,2]
[359359438,1745950240810,-281.77703109,0.00029762,2]
[359359441,1745950240820,-160.0,0.00029783,2]
[359359443,1745950240830,-1688.21575687,0.00029853,2]
[359359446,1745950240849,-746.88424313,0.00029853,2]
[359359448,1745950240859,-546.1720697,0.00029853,2]
[359359450,1745950240869,-546.17206968,0.00029863,2]
[359359452,1745950240879,-543.24189568,0.00029874,2]
[359359476,1745950241111,-2.930174,0.00029874,2]
[359359478,1745950241121,-546.17206968,0.00029884,2]
[359359480,1745950241130,-546.17206968,0.00029894,2]
[359359482,1745950241139,-514.95995328,0.00029928,2]
[359359484,1745950241149,-400.0,0.00029928,2]
[359359486,1745950241158,-400.0,0.00029928,2]
[359359488,1745950241168,-500.0,0.00029928,2]
[359359490,1745950241177,-400.0,0.00029928,2]
[359359492,1745950241186,-400.0,0.00029928,2]
[359359494,1745950241197,-500.0,0.00029928,2]
[359359496,1745950241207,-400.0,0.00029928,2]
[359359499,1745950241216,-500.0,0.00029928,2]
[359359500,1745950241226,-400.0,0.00029928,2]
[359359502,1745950241236,-500.0,0.00029928,2]
[359359504,1745950241245,-500.0,0.00029928,2]
[359359506,1745950241254,-239.33735911,0.00029928,2]
[359359508,1745950241263,-459.80347819,0.00029928,2]
[359359509,1745950241273,-391.86617309,0.00029928,2]
[359359511,1745950241282,-500.0,0.00029928,2]
[359359513,1745950241291,-500.0,0.00029928,2]
[359359515,1745950241302,-492.44133217,0.00029928,2]
[359359517,1745950241311,-400.0,0.00029928,2]
[359359519,1745950241321,-400.0,0.00029928,2]
[359359520,1745950241330,-391.37835575,0.00029928,2]
[359359522,1745950241339,-63.05068772,0.00029929,2]
[359359767,1745950244035,-400.0,0.00029928,2]
[359359769,1745950244045,-50.51382276,0.00029928,2]
[359359772,1745950244065,-349.48617724,0.00029928,2]
[359359774,1745950244075,-400.0,0.00029929,2]
[359359776,1745950244084,-400.0,0.00029929,2]
[359359778,1745950244094,-400.0,0.00029929,2]
[359359780,1745950244103,-400.0,0.00029929,2]
[359359782,1745950244113,-2129.67,0.00029929,2]
[359359784,1745950244122,-841.35,0.00029929,2]
[359359786,1745950244132,-597.93,0.00029929,2]
[359359788,1745950244141,-4477.77,0.00029929,2]
[359359790,1745950244151,-400.0,0.00029929,2]
[359359792,1745950244160,-400.0,0.00029929,2]
[359359794,1745950244169,-400.0,0.00029929,2]
[359359796,1745950244178,-4481.88,0.00029929,2]
[359359798,1745950244188,-404.12255697,0.00029929,2]
[359359800,1745950244198,-1016.27,0.00029929,2]
[359359802,1745950244209,-1557.18,0.00029929,2]
[359359804,1745950244219,-200.0,0.00029929,2]
[359359806,1745950244228,-6821.26,0.00029929,2]
[359359808,1745950244237,-5218.28,0.00029929,2]
[359359810,1745950244246,-2301.75,0.00029929,2]
[359359812,1745950244255,-499.69,0.00029929,2]
[359359814,1745950244264,-2340.36,0.00029929,2]
[359359816,1745950244273,-342.72468269,0.00029929,2]
[359359818,1745950244283,-400.0,0.00029929,2]
[359359820,1745950244292,-2668.83308521,0.00029929,2]
[359359822,1745950244304,-504.68148946,0.00029929,2]
[359359825,1745950244315,-253.74189733,0.00029929,2]
[359359836,1745950244413,-917.223528,0.00029929,2]
[359359838,1745950244422,-465.73774311,0.00029949,2]
[359359840,1745950244431,-735.44,0.00029949,2]
[359359842,1745950244440,-2027.24,0.00029949,2]
[359359844,1745950244450,-400.0,0.00029949,2]
[359359846,1745950244460,-400.0,0.00029949,2]
[359359848,1745950244469,-448.72,0.00029949,2]
[359359850,1745950244482,-796.85,0.00029949,2]
[359359852,1745950244491,-228.2339917,0.00029949,2]
[359359854,1745950244500,-753.17,0.00029949,2]
[359359856,1745950244509,-2644.55,0.00029949,2]
[359359858,1745950244519,-977.43,0.00029949,2]
[359359860,1745950244527,-400.0,0.00029949,2]
[359359862,1745950244536,-2032.37,0.00029949,2]
[359359864,1745950244547,-400.0,0.00029949,2]
[359359866,1745950244558,-2435.1,0.00029949,2]
[359359868,1745950244569,-606.65,0.00029949,2]
[359359870,1745950244578,-2282.85,0.00029949,2]
[359359872,1745950244587,-2537.29,0.00029949,2]
[359359874,1745950244596,-502.89,0.00029949,2]
[359359876,1745950244605,-400.0,0.00029949,2]
[359359878,1745950244615,-400.0,0.00029949,2]
[359359880,1745950244624,-400.0,0.00029949,2]
[359359882,1745950244633,-665.54,0.00029949,2]
[359359884,1745950244643,-400.0,0.00029949,2]
[359359886,1745950244653,-508.94446627,0.00029949,2]
[359359888,1745950244663,-2388.42,0.00029949,2]
[359359890,1745950244672,-1859.74,0.00029949,2]
[359359892,1745950244681,-2718.43,0.00029949,2]
[359359894,1745950244690,-502.81,0.00029949,2]
[359359896,1745950244700,-2307.22,0.00029949,2]
[359359898,1745950244709,-9774.24,0.0002995,2]
[359359900,1745950244718,-234.41419328,0.00029951,2]
[359359902,1745950244728,-234.41419328,0.00029952,2]
[359359904,1745950244737,-253.79005375,0.0002996,2]
[359359906,1745950244746,-500.0,0.0002996,2]
[359359908,1745950244755,-215.10252026,0.0002996,2]
[359359910,1745950244765,-650.66654975,0.0002996,2]
[359359912,1745950244774,-172.93212436,0.0002996,2]
[359359914,1745950244784,-2435.1,0.0002996,2]
[359359916,1745950244793,-2435.1,0.0002996,2]
[359359918,1745950244803,-400.0,0.00029961,2]
[359359920,1745950244812,-400.0,0.00029961,2]
[359359922,1745950244820,-400.0,0.00029961,2]
[359359924,1745950244830,-413.35631482,0.00029961,2]
[359359926,1745950244838,-400.0,0.00029961,2]
[359359928,1745950244852,-400.0,0.00029961,2]
[359359930,1745950244862,-400.0,0.00029961,2]
[359359932,1745950244872,-400.0,0.00029961,2]
[359359934,1745950244881,-400.0,0.00029961,2]
[359359936,1745950244891,-400.0,0.00029961,2]
[359359938,1745950244901,-859.28,0.00029961,2]
[359359940,1745950244911,-400.0,0.00029961,2]
[359359942,1745950244920,-400.0,0.00029961,2]
[359359943,1745950244929,-204.80260837,0.00029961,2]
[359359945,1745950244938,-400.0,0.00029961,2]
[359359947,1745950244947,-400.0,0.00029961,2]
[359359949,1745950244957,-334.82241297,0.00029961,2]
[359359952,1745950244967,-400.0,0.00029961,2]
[359359953,1745950244977,-400.0,0.00029961,2]
[359359955,1745950244986,-510.13,0.00029961,2]
[359359957,1745950244996,-400.0,0.00029961,2]
[359359959,1745950245006,-400.0,0.00029961,2]
[359359961,1745950245015,-400.0,0.00029961,2]
[359359963,1745950245025,-400.0,0.00029961,2]
[359359965,1745950245034,-783.69,0.00029961,2]
[359359967,1745950245044,-515.96,0.00029961,2]
[359359969,1745950245053,-400.0,0.00029961,2]
[359359971,1745950245063,-400.0,0.00029961,2]
[359359973,1745950245073,-400.0,0.00029961,2]
[359359975,1745950245082,-200.0,0.00029961,2]
[359359977,1745950245091,-400.0,0.00029961,2]
[359359980,1745950245102,-400.0,0.00029961,2]
[359359981,1745950245111,-836.06,0.00029961,2]
[359359983,1745950245120,-400.0,0.00029961,2]
[359359985,1745950245129,-210.08358496,0.00029961,2]
[359359987,1745950245139,-400.0,0.00029961,2]
[359359989,1745950245148,-400.0,0.00029961,2]
[359359991,1745950245157,-890.21,0.00029961,2]
[359359993,1745950245166,-400.0,0.00029961,2]
[359359995,1745950245176,-400.0,0.00029961,2]
[359359997,1745950245186,-400.0,0.00029961,2]
[359359999,1745950245195,-400.0,0.00029961,2]
[359360001,1745950245204,-413.96070542,0.00029961,2]
[359360003,1745950245213,-400.0,0.00029961,2]
[359360005,1745950245223,-400.0,0.00029961,2]
[359360007,1745950245232,-400.0,0.00029961,2]
[359360009,1745950245241,-448.01,0.00029961,2]
[359360011,1745950245251,-469.6,0.00029961,2]
[359360013,1745950245260,-855.39,0.00029961,2]
[359360015,1745950245270,-400.0,0.00029961,2]
[359360017,1745950245279,-400.0,0.00029961,2]
[359360019,1745950245289,-537.48,0.00029961,2]
[359360021,1745950245298,-423.88,0.00029961,2]
[359360023,1745950245307,-500.96,0.00029961,2]
[359360025,1745950245317,-400.0,0.00029961,2]
[359360027,1745950245326,-510.86,0.00029961,2]
[359360029,1745950245335,-400.0,0.00029961,2]
[359360031,1745950245344,-1044.99,0.00029961,2]
[359360033,1745950245353,-400.0,0.00029961,2]
[359360035,1745950245363,-400.0,0.00029961,2]
[359360037,1745950245373,-863.9,0.00029961,2]
[359360039,1745950245382,-400.0,0.00029961,2]
[359360041,1745950245391,-400.0,0.00029961,2]
[359360043,1745950245400,-400.0,0.00029961,2]
[359360045,1745950245410,-400.0,0.00029961,2]
[359360047,1745950245419,-936.0,0.00029961,2]
[359360049,1745950245428,-300.0,0.00029961,2]
[359360051,1745950245437,-489.11,0.00029961,2]
[359360053,1745950245446,-928.32,0.00029961,2]
[359360055,1745950245455,-426.15,0.00029961,2]
[359360057,1745950245465,-1739.64,0.00029961,2]
[359360059,1745950245475,-1599.63,0.00029961,2]
[359360061,1745950245487,-450.72,0.00029961,2]
[359360062,1745950245496,-400.0,0.00029961,2]
[359360063,1745950245504,-669.77,0.00029961,2]
[359360064,1745950245513,-151.0,0.00029961,7]
[359360065,1745950245523,-400.0,0.00029961,2]
[359360067,1745950245532,-400.0,0.00029961,2]
[359360069,1745950245541,-382.82021764,0.00029961,2]
[359360071,1745950245550,-400.0,0.00029961,2]
[359360073,1745950245561,-522.62578541,0.00029961,2]
[359360075,1745950245570,-400.0,0.00029961,2]
[359360077,1745950245579,-500.0,0.00029961,2]
[359360079,1745950245588,-327.34633834,0.00029961,2]
[359360081,1745950245597,-400.0,0.00029961,2]
[359360083,1745950245607,-151.0,0.00029961,7]
[359360084,1745950245616,-400.0,0.00029961,2]
[359360086,1745950245625,-400.0,0.00029961,2]
[359360088,1745950245634,-500.0,0.00029961,2]
[359360090,1745950245643,-400.0,0.00029961,2]
[359360092,1745950245653,-400.0,0.00029961,2]
[359360095,1745950245663,-1012.25,0.00029961,2]
[359360097,1745950245672,-400.0,0.00029961,2]
[359360098,1745950245681,-500.0,0.00029961,2]
[359360101,1745950245690,-151.0,0.00029961,7]
[359360103,1745950245699,-200.0,0.00029961,2]
[359360105,1745950245709,-1114.07,0.00029961,2]
[359360106,1745950245718,-400.0,0.00029961,2]
[359360108,1745950245727,-525.91,0.00029961,2]
[359360110,1745950245735,-400.0,0.00029961,2]
[359360112,1745950245745,-400.0,0.00029961,2]
[359360114,1745950245754,-565.43,0.00029961,2]
[359360117,1745950245763,-219.98470781,0.00029961,2]
[359360119,1745950245772,-792.61,0.00029961,2]
[359360120,1745950245781,-200.0,0.00029961,2]
[359360122,1745950245791,-400.0,0.00029961,2]
[359360124,1745950245800,-400.0,0.00029961,2]
[359360126,1745950245812,-400.0,0.00029961,2]
[359360128,1745950245821,-400.0,0.00029961,2]
[359360130,1745950245830,-500.0,0.00029961,2]
[359360132,1745950245839,-618.32,0.00029961,2]
[359360134,1745950245848,-400.0,0.00029961,2]
[359360136,1745950245858,-200.0,0.00029961,2]
[359360138,1745950245867,-400.0,0.00029961,2]
[359360140,1745950245876,-400.0,0.00029961,2]
[359360142,1745950245886,-151.0,0.00029961,7]
[359360144,1745950245897,-151.0,0.00029961,7]
[359360146,1745950245907,-400.0,0.00029961,2]
[359360148,1745950245916,-200.0,0.00029961,2]
[359360150,1745950245925,-400.0,0.00029961,2]
[359360152,1745950245935,-400.0,0.00029961,2]
[359360154,1745950245944,-671.04,0.00029961,2]
[359360156,1745950245954,-151.0,0.00029961,2]
[359360158,1745950245964,-151.0,0.00029961,2]
[359360160,1745950245973,-400.0,0.00029961,2]
[359360162,1745950245983,-457.87535564,0.00029961,2]
[359360164,1745950245992,-151.0,0.00029961,2]
[359360166,1745950246001,-151.0,0.00029961,2]
[359360168,1745950246010,-400.0,0.00029961,2]
[359360170,1745950246020,-500.0,0.00029961,2]
[359360172,1745950246029,-400.0,0.00029961,2]
[359360174,1745950246039,-200.94947206,0.00029961,2]
[359360176,1745950246048,-151.0,0.00029961,7]
[359360178,1745950246059,-151.0,0.00029961,7]
[359360180,1745950246069,-201.88197317,0.00029961,2]
[359360182,1745950246078,-500.0,0.00029961,2]
[359360184,1745950246087,-500.0,0.00029961,2]
[359360186,1745950246096,-400.0,0.00029961,2]
[359360188,1745950246107,-500.0,0.00029961,2]
[359360190,1745950246116,-500.0,0.00029961,2]
[359360192,1745950246125,-500.0,0.00029961,2]
[359360194,1745950246135,-200.0,0.00029961,2]
[359360196,1745950246144,-486.36876372,0.00029961,2]
[359360198,1745950246153,-201.84511435,0.00029961,2]
[359360200,1745950246162,-151.0,0.00029961,7]
[359360202,1745950246171,-151.0,0.00029961,7]
[359360204,1745950246180,-500.0,0.00029961,2]
[359360206,1745950246189,-500.0,0.00029961,2]
[359360208,1745950246199,-307.66,0.00029961,2]
[359360210,1745950246208,-400.0,0.00029961,2]
[359360212,1745950246217,-500.0,0.00029961,2]
[359360214,1745950246226,-400.0,0.00029961,2]
[359360216,1745950246235,-374.12552491,0.00029961,2]
[359360218,1745950246245,-400.0,0.00029961,2]
[359360220,1745950246254,-6629.8,0.00029961,2]
[359360222,1745950246264,-151.0,0.00029961,7]
[359360224,1745950246273,-151.0,0.00029961,7]
[359360226,1745950246282,-400.0,0.00029961,2]
[359360228,1745950246291,-400.0,0.00029961,2]
[359360230,1745950246300,-400.0,0.00029961,2]
[359360232,1745950246309,-2228.71,0.00029961,2]
[359360234,1745950246318,-839.34,0.00029961,2]
[359360236,1745950246328,-400.0,0.00029961,2]
[359360238,1745950246337,-200.0,0.00029961,2]
[359360240,1745950246346,-151.0,0.00029961,7]
[359360242,1745950246355,-151.0,0.00029961,7]
[359360244,1745950246364,-151.0,0.00029961,7]
[359360246,1745950246374,-200.80169088,0.00029961,2]
[359360248,1745950246383,-486.85,0.00029961,2]
[359360250,1745950246392,-540.99,0.00029961,2]
[359360252,1745950246401,-897.445406,0.00029961,7]
[359360254,1745950246410,-897.445406,0.00029961,7]
[359360256,1745950246420,-500.63469283,0.00029961,2]
[359360258,1745950246429,-624.9,0.00029961,2]
[359360260,1745950246438,-400.0,0.00029961,2]
[359360262,1745950246447,-154.882669,0.00029961,7]
[359360264,1745950246456,-897.445406,0.00029961,7]
[359360266,1745950246466,-154.882669,0.00029961,7]
[359360268,1745950246476,-897.445406,0.00029961,7]
[359360270,1745950246488,-200.0,0.00029961,2]
[359360272,1745950246497,-154.882669,0.00029961,7]
[359360274,1745950246506,-154.882669,0.00029961,7]
[359360276,1745950246515,-500.0,0.00029961,2]
[359360278,1745950246526,-500.0,0.00029961,2]
[359360280,1745950246535,-500.0,0.00029961,2]
[359360282,1745950246545,-500.0,0.00029961,2]
[359360285,1745950246557,-201.24582834,0.00029961,2]
[359360286,1745950246567,-228.56982588,0.00029961,2]
[359360288,1745950246577,-400.0,0.00029961,2]
[359360291,1745950246586,-1259.11,0.00029961,2]
[359360292,1745950246596,-500.0,0.00029961,2]
[359360294,1745950246605,-429.51685688,0.00029961,2]
[359360296,1745950246614,-500.0,0.00029961,2]
[359360298,1745950246624,-400.0,0.00029961,2]
[359360300,1745950246634,-400.0,0.00029961,2]
[359360302,1745950246643,-1654.28,0.00029961,2]